bitfinex/quotes_ETHUSD_20241022
["timestamp","ask_amount","ask_price","bid_price","bid_amount"]
[1729564016501,2.99070287,2650.9,2650.6,0.28112393]
[1729564016806,2.99070287,2650.9,2650.5,3.77286]
[1729564017020,1.35065038,2650.9,2650.6,0.28112217]
[1729564017319,2.99070287,2650.9,2650.5,3.77286]
[1729564017812,1.35065038,2650.9,2650.6,0.281136]
[1729564018677,1.35065038,2650.9,2650.5,3.77286]
[1729564019011,1.35065038,2650.9,2650.6,0.28113968]
[1729564019185,1.35065038,2650.9,2650.5,3.77286]
[1729564020175,1.35065038,2650.9,2650.6,0.28114499]
[1729564020414,1.35065038,2650.9,2650.5,3.77286]
[1729564020613,1.35065038,2650.9,2650.6,0.28119114]
[1729564020820,1.35065038,2650.9,2650.5,3.77286]
[1729564021020,1.35065038,2650.9,2650.5,4.22126278]
[1729564023204,1.35065038,2650.9,2650.5,3.77286]
[1729564023382,2.99070287,2650.9,2650.5,3.77286]
[1729564023787,1.35065038,2650.9,2650.5,3.77286]
[1729564024403,0.7653,2650.9,2650.5,3.77286]
[1729564025031,0.7653,2650.9,2650.4,3.77291]
[1729564025181,0.7653,2650.9,2650.4,7.54581]
[1729564025385,2.40535249,2650.9,2650.4,7.54581]
[1729564025729,0.7653,2650.9,2650.4,7.54581]
[1729564026313,0.7653,2650.9,2650.5,3.77282]
[1729564027382,0.7653,2650.9,2650.5,3.77277]
[1729564027604,0.7653,2650.9,2650.5,1.00003225]
[1729564028324,4.57934,2651.1,2650.6,3.77273]
[1729564028529,6.21939249,2651.1,2650.6,3.77273]
[1729564029335,2.44735249,2651.1,2650.6,4.56583]
[1729564029691,6.21942249,2651.1,2650.6,4.56583]
[1729564030216,1.64005249,2651.0,2650.6,3.77273]
[1729564030732,6.21942249,2651.1,2650.6,3.77273]
[1729564031098,1.64005249,2651.0,2650.6,3.77273]
[1729564031303,6.21942249,2651.1,2650.6,3.77273]
[1729564032886,3.77217,2651.0,2650.5,3.77283]
[1729564033598,2.44735249,2651.1,2650.6,3.77271]
[1729564034121,6.21940249,2651.1,2650.6,3.77271]
[1729564034301,4.57935,2651.1,2650.6,3.77271]
[1729564034626,6.21940249,2651.1,2650.6,3.77271]
[1729564036162,9.99153249,2651.1,2650.6,3.77271]
[1729564036565,6.21940249,2651.1,2650.6,3.77271]
[1729564037066,9.99149249,2651.1,2650.6,3.77271]
[1729564037827,6.21940249,2651.1,2650.4,6.20608249]
[1729564038024,3.77216,2651.0,2650.4,10.59956074]
[1729564038463,3.77216,2651.0,2650.4,6.82663074]
[1729564038674,3.77216,2651.0,2650.5,3.77286]
[1729564039359,4.35753546,2651.0,2650.5,3.77286]
[1729564039876,5.99758795,2651.0,2650.5,3.77286]
[1729564040179,0.7646,2650.9,2650.5,3.77286]
[1729564040326,0.7646,2650.9,2650.5,4.83280907]
[1729564043968,0.58537546,2651.0,2650.7,3.77258]
[1729564045633,0.58537546,2651.0,2650.8,3.77243]
[1729564045977,0.58537546,2651.0,2650.7,8.37727]
[1729564046171,0.58537546,2651.0,2650.7,4.60469]
[1729564046373,0.58537546,2651.0,2650.7,5.71244116]
[1729564046677,0.58537546,2651.0,2650.9,5.41235249]
[1729564046849,0.58537546,2651.0,2650.9,3.7723]
[1729564049196,0.778,2650.9,2650.5,3.77286]
[1729564049370,2.41805249,2650.9,2650.5,3.77286]
[1729564049908,2.41805249,2650.9,2650.4,4.39353825]
[1729564050266,1.64005249,2650.8,2650.4,0.62060825]
[1729564050585,4.5503,2650.9,2650.4,1.64005249]
[1729564050586,0.778,2650.9,2650.4,1.64005249]
[1729564050954,0.778,2650.9,2650.5,5.41291249]
[1729564051349,0.778,2650.9,2650.5,3.77286]
[1729564051593,2.41805249,2650.9,2650.5,3.77286]
[1729564051794,0.778,2650.9,2650.5,5.41291249]
[1729564052198,0.778,2650.9,2650.5,3.77286]
[1729564056762,0.778,2650.9,2650.5,3.77278]
[1729564057163,4.55033,2650.9,2650.4,3.773]
[1729564057472,2.41805249,2650.9,2650.5,3.77285]
[1729564058966,2.41805249,2650.9,2650.5,7.5457]
[1729564059457,0.778,2650.9,2650.5,7.5457]
[1729564059958,0.778,2650.9,2650.5,4.3476928]
[1729564060802,0.778,2650.9,2650.5,4.3475828]
[1729564061299,0.778,2650.9,2650.5,8.1203728]
[1729564061598,0.778,2650.9,2650.5,4.3475828]
[1729564062011,0.778,2650.9,2650.5,8.1203728]
[1729564062163,0.778,2650.9,2650.5,4.3475828]
[1729564062362,0.778,2650.9,2650.6,3.77272]
[1729564063473,0.778,2650.9,2650.6,4.88699553]
[1729564064561,0.778,2650.9,2650.5,0.5748428]
[1729564064767,2.22542795,2651.0,2650.4,3.77294]
[1729564064768,1.64005249,2650.8,2650.4,3.77294]
[1729564064967,0.804,2650.8,2650.4,3.77294]
[1729564067305,0.804,2650.8,2650.5,3.77283]
[1729564070243,0.804,2650.8,2650.5,3.77279]
[1729564073152,0.804,2650.8,2650.5,7.54558]
[1729564073645,0.804,2650.8,2650.5,3.77279]
[1729564074525,0.804,2650.8,2650.5,3.77277]
[1729564075033,1.33697546,2651.0,2650.8,3.77232]
[1729564076557,1.33697546,2651.0,2650.9,3.7723]
[1729564077052,1.33697546,2651.0,2650.7,7.54508]
[1729564077946,0.58537546,2651.0,2650.8,3.77243]
[1729564078150,0.58537546,2651.0,2650.9,3.7723]
[1729564079448,0.58537546,2651.0,2650.9,4.526773]
[1729564082514,0.58537546,2651.0,2650.9,0.754473]
[1729564082858,0.58537546,2651.0,2650.8,3.77243]
[1729564083853,0.58537546,2651.0,2650.7,0.55]
[1729564084814,0.58537546,2651.0,2650.7,4.32251]
[1729564085838,0.58537546,2651.0,2650.8,0.0754413]
[1729564086043,0.58537546,2651.0,2650.8,3.8478713]
[1729564086223,0.58537546,2651.0,2650.8,4.75348138]
[1729564086412,0.58537546,2651.0,2650.8,4.82892235]
[1729564086611,0.58537546,2651.0,2650.8,0.98105138]
[1729564089655,0.58537546,2651.0,2650.7,0.55]
[1729564089954,0.58537546,2651.0,2569.8,1.15577925]
[1729564089955,1.64005249,2650.8,2650.4,3.77291]
[1729564090111,2.40965249,2650.9,2650.5,0.55]
[1729564090314,1.64005249,2650.8,2650.5,0.55]
[1729564090553,2.40965249,2650.9,2650.5,0.55]
[1729564091056,2.40965249,2650.9,2650.4,3.77291]
[1729564091057,6.23140249,2650.6,2649.9,4.5916]
[1729564091217,1.64005249,2650.4,2649.9,8.36531]
[1729564091416,1.64005249,2650.3,2649.9,3.79]
[1729564091722,2.45865249,2650.4,2649.9,4.79054525]
[1729564092081,1.64005249,2650.3,2649.9,4.79054525]
[1729564092222,2.45865249,2650.4,2649.9,4.79054525]
[1729564092418,2.45865249,2650.4,2649.9,8.56426525]
[1729564092617,2.45865249,2650.4,2649.9,4.79054525]
[1729564094059,2.45865249,2650.4,2649.9,8.56424525]
[1729564094249,2.45865249,2650.4,2650.0,1.39780677]
[1729564097460,2.45865249,2650.4,2649.9,4.79054525]
[1729564097758,1.64005249,2650.3,2649.9,4.79054525]
[1729564098342,2.45865249,2650.4,2649.9,4.79054525]
[1729564099470,2.45865249,2650.4,2649.9,3.79]
[1729564102461,2.45865249,2650.4,2649.9,7.56371]
[1729564103883,1.64005249,2650.0,2649.9,3.79]
[1729564104076,1.64005249,2650.0,2649.7,0.8016]
[1729564104077,2.40115249,2650.0,2649.6,0.59075277]
[1729564104242,1.64005249,2649.9,2649.5,0.82976609]
[1729564104443,1.64005249,2649.8,2649.5,0.8109]
[1729564104738,1.64005249,2649.9,2649.5,0.8109]
[1729564108307,1.35648414,2649.6,2649.2,3.77471]
[1729564108657,2.99653663,2649.6,2649.1,3.0344113]
[1729564108859,5.13064414,2649.6,2649.1,1.39435881]
[1729564109156,5.13064414,2649.6,2648.9,8.35096]
[1729564109479,1.64005249,2649.5,2649.0,3.775]
[1729564109652,1.64005249,2649.5,2648.9,9.99101249]
[1729564109858,5.41435249,2649.5,2648.9,9.35006125]
[1729564110081,1.64005249,2649.4,2648.9,9.35006125]
[1729564110253,5.41435249,2649.5,2648.9,10.99011374]
[1729564110454,1.64005249,2649.4,2648.9,6.21595249]
[1729564110777,7.54868,2649.5,2648.9,9.99108249]
[1729564110778,3.7743,2649.5,2648.9,9.99108249]
[1729564110981,5.41435249,2649.5,2648.9,9.99108249]
[1729564111206,1.64005249,2649.4,2648.9,8.35103]
[1729564111354,5.41435249,2649.5,2648.9,9.99108249]
[1729564111552,6.46884415,2649.5,2648.9,9.99108249]
[1729564111853,6.46884415,2649.5,2648.9,6.21595249]
[1729564112056,1.64005249,2649.4,2648.9,4.5759]
[1729564112374,5.41449249,2649.4,2648.9,4.5759]
[1729564113579,1.64005249,2649.4,2648.9,8.35102]
[1729564113781,1.64005249,2649.4,2648.9,5.95254125]
[1729564114165,1.64005249,2649.4,2648.9,11.36773374]
[1729564114707,5.41442249,2649.5,2648.9,11.36773374]
[1729564115606,5.41442249,2649.5,2649.0,1.64005249]
[1729564115810,1.64005249,2649.5,2649.0,5.41504249]
[1729564116011,2.99653663,2649.6,2649.0,1.64005249]
[1729564116175,4.35648414,2649.6,2649.2,2.43015249]
[1729564116369,8.13063414,2649.6,2649.2,0.7901]
[1729564116574,9.77068663,2649.6,2649.2,0.7901]
[1729564116875,8.13063414,2649.6,2649.2,0.7901]
[1729564117077,4.35648414,2649.6,2649.2,0.7901]
[1729564118725,3.58558414,2649.6,2649.2,2.43015249]
[1729564118919,0.58558414,2649.6,2649.2,3.2096292]
[1729564119095,4.35975414,2649.6,2649.2,1.56957671]
[1729564119873,5.99980663,2649.6,2649.2,0.7901]
[1729564120070,4.35975414,2649.6,2649.2,0.7901]
[1729564120270,5.99980663,2649.6,2649.2,0.7901]
[1729564121022,4.35975414,2649.6,2649.2,0.7901]
[1729564122995,0.58558414,2649.6,2649.2,0.7901]
[1729564123201,0.58558414,2649.6,2649.2,3.03806393]
[1729564123416,0.58558414,2649.6,2649.2,1.39801144]
[1729564124021,4.35973414,2649.6,2649.2,1.39801144]
[1729564124221,4.35973414,2649.6,2649.2,0.7901]
[1729564125420,5.99978663,2649.6,2649.2,0.7901]
[1729564125630,3.77432,2649.5,2649.2,0.7901]
[1729564125777,3.77432,2649.5,2649.1,0.55]
[1729564126025,6.18577249,2649.5,2649.1,0.55]
[1729564126228,4.54572,2649.5,2649.1,0.55]
[1729564127839,3.77432,2649.5,2649.1,2.13136269]
[1729564130495,3.77432,2649.5,2649.1,1.58136269]
[1729564132283,3.77432,2649.5,2649.1,3.22141518]
[1729564132585,3.77432,2649.5,2649.1,1.58136269]
[1729564134880,0.831,2649.4,2649.1,1.58136269]
[1729564135079,0.831,2649.4,2649.0,0.8159]
[1729564135286,3.77468,2649.3,2648.9,3.79]
[1729564135666,7.54939,2649.3,2648.9,3.79]
[1729564136169,3.77468,2649.3,2648.9,3.79]
[1729564136361,3.77479,2649.2,2648.9,3.79]
[1729564137547,3.77468,2649.3,2648.9,3.79]
[1729564138391,7.54938,2649.3,2648.9,3.79]
[1729564138595,3.77468,2649.3,2648.9,3.79]
[1729564138886,7.54934,2649.3,2648.9,3.79]
[1729564139448,5.41505249,2649.0,2648.9,3.79]
[1729564139680,3.775,2649.0,2648.7,0.8159]
[1729564140955,3.775,2649.0,2648.5,0.7688]
[1729564140956,3.77522,2648.9,2648.5,0.7688]
[1729564141190,3.77522,2648.9,2648.5,2.40885249]
[1729564141553,3.775,2649.0,2648.5,2.40885249]
[1729564141992,1.64005249,2648.6,2648.4,0.60989482]
[1729564142154,5.41571249,2648.6,2648.4,0.59102873]
[1729564142359,3.77566,2648.6,2648.3,0.8955742]
[1729564142678,3.77536,2648.8,2648.3,2.53562669]
[1729564142878,3.77536,2648.8,2648.3,0.8955742]
[1729564143202,5.41541249,2648.8,2648.3,0.8955742]
[1729564143498,10.00171249,2648.6,2648.3,0.1267742]
[1729564143696,10.00170249,2648.6,2648.3,0.1267742]
[1729564143861,6.22603249,2648.6,2648.3,0.1267742]
[1729564144986,10.00172249,2648.6,2648.3,0.1267742]
[1729564145190,1.64005249,2648.4,2648.3,0.1267742]
[1729564145832,1.64005249,2648.5,2648.3,0.1267742]
[1729564146120,1.64005249,2648.4,2648.3,0.1267742]
[1729564146282,6.03851574,2648.4,2648.3,0.1267742]
[1729564147503,2.26265574,2648.4,2648.3,0.1267742]
[1729564147701,0.62260325,2648.4,2648.3,0.1267742]
[1729564148193,1.42380325,2648.4,2648.3,0.1267742]
[1729564148388,3.06385574,2648.4,2648.3,0.1267742]
[1729564148729,1.42380325,2648.4,2648.3,0.1267742]
[1729564148931,0.62260325,2648.4,2648.3,0.1267742]
[1729564152196,3.77527,2648.9,2648.3,2.57562669]
[1729564152407,1.64005249,2648.8,2648.3,0.9355742]
[1729564152658,2.40505249,2648.7,2648.3,4.7115742]
[1729564153647,2.40505249,2648.7,2648.3,4.7115042]
[1729564153852,2.40505249,2648.7,2648.3,8.4874242]
[1729564154053,2.40505249,2648.7,2648.3,4.7114942]
[1729564154212,0.765,2648.7,2648.3,8.4874142]
[1729564154411,0.765,2648.7,2648.3,4.7114942]
[1729564154612,0.765,2648.7,2648.3,8.4874042]
[1729564154838,0.765,2648.7,2648.3,4.7114842]
[1729564155041,2.40505249,2648.7,2648.3,4.7114842]
[1729564155612,2.40505249,2648.7,2648.3,3.9026842]
[1729564155846,2.40505249,2648.7,2648.3,7.6786042]
[1729564156089,2.40505249,2648.7,2648.3,3.9026842]
[1729564158166,1.64005249,2648.6,2648.3,3.9026842]
[1729564158959,2.40505249,2648.7,2648.3,3.9026842]
[1729564159960,2.40505249,2648.7,2648.3,7.6786042]
[1729564160169,2.40505249,2648.7,2648.3,3.9026842]
[1729564161675,2.40505249,2648.7,2648.3,7.6786042]
[1729564161959,0.765,2648.7,2648.3,7.6786042]
[1729564162277,0.765,2648.7,2648.3,3.9026842]
[1729564163031,2.40505249,2648.7,2648.3,3.9026842]
[1729564163227,0.765,2648.7,2648.3,7.6786042]
[1729564163656,1.64005249,2648.8,2648.3,7.6786042]
[1729564163862,1.64005249,2648.8,2648.3,3.9026842]
[1729564164064,1.64005249,2648.8,2648.3,7.6786042]
[1729564164277,1.64005249,2648.8,2648.3,3.9026842]
[1729564164766,1.64005249,2648.8,2648.4,3.77585]
[1729564164966,4.56862,2648.9,2648.4,3.77585]
[1729564165177,1.64005249,2648.8,2648.4,3.77585]
[1729564166468,7.04302849,2648.9,2648.5,0.7731]
[1729564167027,10.81825849,2648.9,2648.5,0.7731]
[1729564167275,1.64005249,2648.8,2648.5,0.7731]
[1729564167773,10.81825849,2648.9,2648.5,0.7731]
[1729564168180,5.41534249,2648.8,2648.5,0.7731]
[1729564170236,3.77529,2648.8,2648.5,0.7731]
[1729564170569,5.41534249,2648.8,2648.5,0.7731]
[1729564170777,3.77529,2648.8,2648.5,0.7731]
[1729564171278,5.41534249,2648.8,2648.5,0.7731]
[1729564171580,3.77529,2648.8,2648.5,0.7731]
[1729564172032,5.41534249,2648.8,2648.5,0.7731]
[1729564172381,3.77529,2648.8,2648.5,0.7731]
[1729564172733,6.49717434,2648.8,2648.5,0.7731]
[1729564173976,4.85712185,2648.8,2648.5,0.7731]
[1729564174275,6.49717434,2648.8,2648.5,0.7731]
[1729564177363,2.72188434,2648.8,2648.5,0.7731]
[1729564177588,3.77544,2648.7,2648.5,0.7731]
[1729564177891,5.41549249,2648.7,2648.5,0.7731]
[1729564178790,1.64005249,2648.6,2648.3,0.9310742]
[1729564178990,5.41589249,2648.5,2648.3,0.1267742]
[1729564179794,3.77584,2648.5,2648.3,0.1267742]
[1729564179961,4.51104869,2648.5,2648.3,0.1267742]
[1729564180550,3.77586,2648.4,2648.3,0.1267742]
[1729564182810,4.51104869,2648.5,2648.3,0.1267742]
[1729564183093,3.77584,2648.5,2648.3,0.1267742]
[1729564185591,3.7758,2648.5,2648.3,0.1267742]
[1729564186665,7.5516,2648.5,2648.3,0.1267742]
[1729564186865,3.7758,2648.5,2648.3,0.1267742]
[1729564187065,3.77586,2648.4,2648.3,0.1267742]
[1729564193313,5.41585249,2648.5,2648.3,0.1267742]
[1729564193314,3.7758,2648.5,2648.3,0.1267742]
[1729564193525,7.55161,2648.5,2648.3,0.1267742]
[1729564193676,8.47077625,2648.5,2648.3,0.1267742]
[1729564193877,6.33501874,2648.5,2648.3,0.1267742]
[1729564194910,4.69496625,2648.5,2648.3,0.1267742]
[1729564200502,9.22961249,2648.4,2648.3,0.1267742]
[1729564200683,10.87966498,2648.4,2648.3,0.1267742]
[1729564200892,12.4381281,2648.4,2648.3,0.1267742]
[1729564201201,3.77729,2647.4,2647.0,0.7896]
[1729564201402,3.77757,2647.3,2647.0,0.7896]
[1729564201614,3.77729,2647.4,2647.0,0.7896]
[1729564201615,5.41763249,2647.2,2647.0,0.7896]
[1729564201791,5.41763249,2647.2,2646.7,0.8176]
[1729564202138,1.64005249,2647.1,2646.7,0.8176]
[1729564202343,1.64005249,2646.8,2646.5,0.8176]
[1729564202636,1.64005249,2646.9,2646.5,0.8176]
[1729564202836,5.41798249,2647.0,2646.5,0.8176]
[1729564203025,3.77793,2647.0,2646.5,2.45765249]
[1729564203232,3.0,2647.1,2646.6,5.41846249]
[1729564203527,5.41767249,2647.2,2646.6,5.41846249]
[1729564204298,1.64005249,2647.2,2646.7,0.7734]
[1729564207502,1.64005249,2647.1,2646.7,0.7734]
[1729564210043,1.64005249,2647.1,2646.7,4.55168]
[1729564210697,1.64005249,2647.2,2646.7,4.55168]
[1729564211739,1.64005249,2647.2,2646.8,3.77812]
[1729564214947,2.22615615,2647.5,2646.9,4.59911]
[1729564215149,1.64005249,2647.1,2646.9,4.59911]
[1729564215315,1.64005249,2647.2,2646.9,4.59911]
[1729564215514,0.58610366,2647.5,2646.9,4.59911]
[1729564215849,3.77729,2647.4,2646.9,0.8212]
[1729564216047,4.89134337,2647.4,2646.9,0.8212]
[1729564216712,6.53139586,2647.4,2646.9,0.8212]
[1729564217850,2.22615615,2647.5,2647.0,3.81462174]
[1729564218060,0.58610366,2647.5,2647.1,4.59251]
[1729564218359,1.64005249,2647.4,2647.1,0.8148]
[1729564218658,2.22615615,2647.5,2647.2,0.03666657]
[1729564218959,0.58610366,2647.5,2647.2,4.65484823]
[1729564219145,0.58610366,2647.5,2647.4,4.59829]
[1729564219457,0.58610366,2647.5,2647.4,6.23834249]
[1729564219659,0.58610366,2647.5,2647.4,6.27500906]
[1729564219989,0.58610366,2647.5,2647.4,7.36432213]
[1729564221825,0.58610366,2647.5,2647.4,5.72426964]
[1729564222169,0.58610366,2647.5,2647.4,6.27500906]
[1729564222725,0.58610366,2647.5,2647.4,6.35054464]
[1729564222934,0.58610366,2647.5,2647.4,6.82500906]
[1729564228939,0.58610366,2647.5,2647.4,2.49771906]
[1729564229142,0.58610366,2647.5,2647.4,6.27500906]
[1729564229462,0.58610366,2647.5,2647.4,2.49771906]
[1729564229641,0.58610366,2647.5,2647.4,6.27500906]
[1729564230989,0.58610366,2647.5,2647.4,7.36431413]
[1729564232526,0.58610366,2647.5,2647.4,6.27500906]
[1729564234322,0.58610366,2647.5,2647.4,0.85766657]
[1729564234695,0.58610366,2647.5,2647.4,6.27500906]
[1729564235589,0.58610366,2647.5,2647.4,3.81395657]
[1729564235995,0.58610366,2647.5,2647.4,5.45400906]
[1729564238026,0.58610366,2647.5,2647.4,3.81395657]
[1729564238228,0.58610366,2647.5,2647.4,5.45400906]
[1729564238719,0.58610366,2647.5,2647.4,3.81395657]
[1729564238970,0.58610366,2647.5,2647.4,5.45400906]
[1729564245079,0.58610366,2647.5,2647.4,6.45510397]
[1729564245239,0.58610366,2647.5,2647.4,7.29923845]
[1729564245424,0.01886609,2647.9,2647.8,3.77672]
[1729564245621,6.20759249,2648.5,2647.9,0.7686]
[1729564245929,6.20759249,2648.5,2648.0,3.77643]
[1729564246156,0.62075925,2648.4,2648.1,0.03537706]
[1729564247764,6.03668174,2648.4,2648.1,0.03537706]
[1729564247918,6.03668174,2648.4,2647.9,4.54517]
[1729564248119,6.03668174,2648.4,2648.0,0.03510854]
[1729564248723,4.39662925,2648.4,2648.0,0.03510854]
[1729564248920,0.74144532,2648.3,2648.0,0.03510854]
[1729564251282,0.74144532,2648.3,2648.0,3.81153854]
[1729564252380,0.74144532,2648.3,2648.0,0.03510854]
[1729564255384,0.62075925,2648.4,2648.0,3.81152854]
[1729564258699,0.62075925,2648.4,2648.0,7.58787854]
[1729564258905,0.62075925,2648.4,2648.0,5.45151103]
[1729564259074,5.15349148,2648.5,2648.0,5.45151103]
[1729564260801,5.15349148,2648.5,2648.0,3.81145854]
[1729564262704,6.79354397,2648.5,2648.0,3.81145854]
[1729564264381,5.15349148,2648.5,2648.0,3.81145854]
[1729564265315,6.79354397,2648.5,2648.0,3.81145854]
[1729564265488,0.6793544,2648.4,2648.0,3.81145854]
[1729564265884,0.6793544,2648.4,2648.0,5.45151103]
[1729564266091,5.15349148,2648.5,2648.0,5.45151103]
[1729564266878,0.58597148,2648.5,2648.2,1.64005249]
[1729564267116,0.58597148,2648.5,2648.3,4.56678]
[1729564267317,0.58597148,2648.5,2648.3,0.8255403]
[1729564268195,0.58597148,2648.5,2648.3,6.24159279]
[1729564268398,0.58597148,2648.5,2648.4,5.41591249]
[1729564268602,0.58597148,2648.5,2648.4,5.4505454]
[1729564268957,0.58597148,2648.5,2648.4,0.03463291]
[1729564272604,0.58597148,2648.5,2648.1,1.64005249]
[1729564272840,0.58597148,2648.5,2648.4,0.03452554]
[1729564273106,4.36169148,2648.5,2648.1,1.64005249]
[1729564273342,4.36169148,2648.5,2648.4,0.03452554]
[1729564273544,5.25605663,2648.5,2648.1,1.64005249]
[1729564273706,0.58597148,2648.5,2648.4,0.03452554]
[1729564273901,0.58597148,2648.5,2648.2,1.64005249]
[1729564274151,0.58597148,2648.5,2648.4,0.03452554]
[1729564274442,0.58597148,2648.5,2648.2,1.64005249]
[1729564274621,0.58597148,2648.5,2648.4,0.03453321]
[1729564274825,0.58597148,2648.5,2648.2,1.64005249]
[1729564275008,0.58597148,2648.5,2648.4,0.03453321]
[1729564275208,0.58597148,2648.5,2648.2,1.64005249]
[1729564275522,0.58597148,2648.5,2648.4,0.03453321]
[1729564275751,0.58597148,2648.5,2648.2,1.64005249]
[1729564276342,0.58597148,2648.5,2648.3,0.03453321]
[1729564276709,0.58597148,2648.5,2648.2,1.64005249]
[1729564276910,0.58597148,2648.5,2648.4,0.03453321]
[1729564277144,0.58597148,2648.5,2648.2,1.64005249]
[1729564277646,0.58597148,2648.5,2648.3,0.03453321]
[1729564277850,0.58597148,2648.5,2648.2,1.64005249]
[1729564278048,0.58597148,2648.5,2648.4,0.03453321]
[1729564278274,0.58597148,2648.5,2648.4,3.77586]
[1729564278429,0.58597148,2648.5,2648.4,5.4504457]
[1729564278745,0.58597148,2648.5,2648.4,1.6745857]
[1729564279354,0.58597148,2648.5,2648.4,0.03453321]
[1729564281228,0.58597148,2648.5,2648.4,3.81039321]
[1729564281460,0.58597148,2648.5,2648.4,5.4504457]
[1729564281857,0.58597148,2648.5,2648.4,1.6745857]
[1729564282653,0.58597148,2648.5,2648.4,6.97426876]
[1729564282973,0.58597148,2648.5,2648.4,7.52426217]
[1729564283322,0.58597148,2648.5,2648.4,10.52426217]
[1729564283523,0.58597148,2648.5,2648.4,10.44875558]
[1729564284138,0.79136609,2649.6,2649.1,3.77483]
[1729564284337,3.77429,2649.5,2649.1,2.45035249]
[1729564284536,0.7725,2649.6,2649.2,0.03422643]
[1729564284738,4.54666,2649.6,2649.2,0.03422643]
[1729564284933,1.76857225,2649.6,2649.3,1.64005249]
[1729564285134,5.41383249,2649.9,2649.2,5.49017076]
[1729564285135,0.7955,2649.8,2649.2,5.49017076]
[1729564285361,4.56939,2649.8,2649.2,5.49017076]
[1729564285563,8.34337,2649.8,2649.3,0.03385842]
[1729564285769,8.34337,2649.8,2649.2,5.49017076]
[1729564285961,8.34337,2649.8,2649.2,5.41468249]
[1729564286162,3.77401,2649.7,2649.3,0.03385842]
[1729564286373,5.41427249,2649.6,2649.1,0.8103]
[1729564286532,0.58569311,2649.6,2649.2,0.03385842]
[1729564286739,4.35986311,2649.6,2649.2,0.03385842]
[1729564287472,0.58569311,2649.6,2649.2,1.67391091]
[1729564287885,0.58569311,2649.6,2649.5,1.64005249]
[1729564288243,0.58569311,2649.6,2649.4,1.64005249]
[1729564288441,0.58569311,2649.6,2649.5,0.03385842]
[1729564289275,0.58569311,2649.6,2649.4,1.64005249]
[1729564289479,0.58569311,2649.6,2649.5,0.03318372]
[1729564291285,0.58569311,2649.6,2649.4,1.64005249]
[1729564291523,0.58569311,2649.6,2649.5,0.03318372]
[1729564292283,4.35984311,2649.6,2649.5,0.03318372]
[1729564292457,4.35984311,2649.6,2649.3,1.64005249]
[1729564292657,4.35984311,2649.6,2649.5,0.03318372]
[1729564292858,0.58569311,2649.6,2649.3,1.64005249]
[1729564293385,0.58569311,2649.6,2649.4,0.03318372]
[1729564293587,0.58569311,2649.6,2649.4,1.67323621]
[1729564295370,0.58569311,2649.6,2649.5,1.64005249]
[1729564295571,0.58569311,2649.6,2649.4,1.64005249]
[1729564295795,0.58569311,2649.6,2649.5,0.03318372]
[1729564296213,0.58569311,2649.6,2649.4,2.43775249]
[1729564297835,4.35987311,2649.6,2649.4,0.7977]
[1729564297970,6.89290191,2649.6,2649.1,0.7977]
[1729564298176,3.77482,2649.2,2648.8,2.43775249]
[1729564298403,3.77459,2649.3,2648.9,1.64005249]
[1729564298577,7.5493,2649.3,2648.9,1.64005249]
[1729564298903,7.5493,2649.3,2649.0,1.64005249]
[1729564299105,7.5493,2649.3,2648.9,1.64005249]
[1729564299309,3.77459,2649.3,2648.9,1.64005249]
[1729564299609,3.77482,2649.2,2648.9,1.64005249]
[1729564299797,3.77482,2649.2,2648.8,2.43775249]
[1729564299983,3.77459,2649.3,2648.8,2.43775249]
[1729564299984,3.77488,2649.1,2648.8,2.43775249]
[1729564300382,3.77539,2648.8,2648.4,0.01886609]
[1729564300595,3.77539,2648.8,2648.3,1.64005249]
[1729564300770,3.77551,2648.7,2648.3,1.64005249]
[1729564300976,3.77539,2648.8,2648.4,1.68124475]
[1729564300977,3.77529,2648.8,2648.4,1.68124475]
[1729564301317,3.77529,2648.8,2648.5,1.64005249]
[1729564301540,3.77509,2649.0,2648.4,1.68124475]
[1729564301541,9.19025249,2649.0,2648.4,1.68124475]
[1729564301713,3.77518,2648.9,2648.6,0.03324505]
[1729564301922,3.77509,2649.0,2648.5,1.64005249]
[1729564302086,7.55021,2649.0,2648.7,0.03324505]
[1729564302287,5.06951625,2649.0,2648.6,0.8213]
[1729564302488,4.5289,2649.1,2648.8,0.03324505]
[1729564302695,3.77501,2649.0,2648.7,1.64005249]
[1729564302902,3.77501,2649.0,2648.9,0.03324505]
[1729564303114,3.77501,2649.0,2648.7,1.64005249]
[1729564303414,3.77501,2649.0,2648.6,2.46135249]
[1729564303614,3.77501,2649.0,2648.8,0.03324505]
[1729564303931,3.77501,2649.0,2648.6,2.46135249]
[1729564304128,3.77501,2649.0,2648.9,0.03324505]
[1729564304437,4.76939725,2649.0,2648.9,0.03324505]
[1729564304638,4.76939725,2649.0,2648.6,0.8213]
[1729564304946,2.47165249,2648.7,2648.2,3.79]
[1729564305229,2.47165249,2648.7,2648.3,1.64005249]
[1729564305230,3.77567,2648.6,2648.3,1.64005249]
[1729564306434,3.77538,2648.8,2648.5,1.64005249]
[1729564306591,4.76947725,2649.0,2648.7,1.64005249]
[1729564306794,3.77502,2649.0,2648.5,0.812]
[1729564307112,3.77502,2649.0,2648.7,1.64005249]
[1729564307490,4.60498,2649.2,2648.9,1.64005249]
[1729564307695,3.77478,2649.2,2649.0,1.64005249]
[1729564307894,3.77478,2649.2,2648.9,2.45205249]
[1729564308189,3.77452,2649.4,2649.0,1.64005249]
[1729564308503,3.77452,2649.4,2648.9,0.812]
[1729564308829,3.77452,2649.4,2648.9,0.8874945]
[1729564309133,3.77452,2649.4,2648.9,0.812]
[1729564309626,3.77452,2649.4,2648.9,1.27072]
[1729564311624,7.54904,2649.4,2648.9,1.27072]
[1729564311835,3.77452,2649.4,2648.9,1.27072]
[1729564312032,7.54905,2649.4,2648.9,1.27072]
[1729564312405,7.54904,2649.4,2648.9,0.812]
[1729564312728,7.54909,2649.4,2648.9,0.812]
[1729564314929,3.77452,2649.4,2648.9,0.812]
[1729564315133,3.77461,2649.3,2648.9,0.812]
[1729564315804,0.7996,2649.3,2648.7,0.779]
[1729564316131,3.77472,2649.2,2648.7,5.92704096]
[1729564316487,3.77472,2649.2,2648.7,5.37704096]
[1729564317235,0.7996,2649.3,2648.8,3.77527]
[1729564318140,4.57421,2649.3,2648.8,3.77527]
[1729564318335,3.77475,2649.2,2648.7,1.60162096]
[1729564318533,0.7996,2649.3,2648.7,5.37692096]
[1729564319454,4.57419,2649.3,2648.7,5.37692096]
[1729564319750,0.7996,2649.3,2648.7,1.60162096]